bitfinex-derivatives/quotes_BTCF0:USTF0_20250912
["timestamp","ask_amount","ask_price","bid_price","bid_amount"]
[1757641660366,0.93668483,115640.0,115630.0,0.67259961]
[1757641660766,0.95214137,115640.0,115630.0,0.67259961]
[1757641662163,0.95214137,115640.0,115630.0,0.56364137]
[1757641663270,0.95214137,115640.0,115630.0,0.67256131]
[1757641663669,0.95214137,115640.0,115630.0,0.50256131]
[1757641663872,0.95214137,115640.0,115630.0,0.68256131]
[1757641664071,0.95214137,115640.0,115630.0,0.57364137]
[1757641665474,0.95214137,115640.0,115630.0,0.68255753]
[1757641667973,0.03666,115640.0,115630.0,1.35255753]
[1757641668273,0.01394,115640.0,115630.0,1.24364137]
[1757641671275,0.01394,115640.0,115630.0,1.1202]
[1757641671569,0.01394,115640.0,115630.0,1.24364137]
[1757641672070,0.01394,115640.0,115630.0,1.35252354]
[1757641673868,0.01394,115640.0,115630.0,1.10252354]
[1757641674069,0.01394,115640.0,115630.0,0.8702]
[1757641674265,0.03573,115640.0,115630.0,0.99364137]
[1757641674673,0.03573,115640.0,115630.0,0.8702]
[1757641674876,0.03573,115640.0,115630.0,0.99364137]
[1757641675971,0.03573,115640.0,115630.0,0.8702]
[1757641676165,0.03573,115640.0,115630.0,1.10252354]
[1757641676365,0.03573,115640.0,115630.0,0.97908217]
[1757641676566,0.03573,115640.0,115630.0,1.10252354]
[1757641676968,0.03573,115640.0,115630.0,0.8702]
[1757641677273,0.03573,115640.0,115630.0,1.14872231]
[1757641678274,0.01394,115640.0,115630.0,1.25756257]
[1757641678468,0.01394,115640.0,115630.0,1.31919438]
[1757641678670,0.01394,115640.0,115630.0,1.16411344]
[1757641678974,0.01394,115640.0,115630.0,1.68563632]
[1757641679476,0.01394,115640.0,115630.0,1.57679606]
[1757641680880,0.01394,115640.0,115630.0,1.73220066]
[1757641681270,0.01394,115640.0,115630.0,1.46800066]
[1757641684076,0.01394,115640.0,115630.0,1.46789016]
[1757641684980,0.01394,115640.0,115630.0,1.31259606]
[1757641685878,0.01394,115640.0,115630.0,0.9424497]
[1757641686186,0.01394,115640.0,115630.0,1.31259606]
[1757641686577,0.01394,115640.0,115630.0,0.9424497]
[1757641686780,0.01394,115640.0,115630.0,1.31259606]
[1757641687081,0.01394,115640.0,115630.0,1.81278288]
[1757641687271,0.01394,115640.0,115630.0,1.02102288]
[1757641687475,0.01394,115640.0,115630.0,1.81274288]
[1757641688285,0.01394,115640.0,115630.0,1.99781606]
[1757641689781,0.01394,115640.0,115630.0,2.15311016]
[1757641695484,0.01394,115640.0,115630.0,1.36139016]
[1757641695674,0.03573,115640.0,115630.0,1.73804728]
[1757641695879,0.03573,115640.0,115630.0,0.94636728]
[1757641696083,0.22080318,115640.0,115630.0,1.73804728]
[1757641696284,0.47080318,115640.0,115630.0,1.58275318]
[1757641697190,0.47080318,115640.0,115630.0,0.79107318]
[1757641697391,0.47080318,115640.0,115630.0,1.58275318]
[1757641697890,0.47080318,115640.0,115630.0,1.5529741]
[1757641698190,0.47080318,115640.0,115630.0,1.73804728]
[1757641698379,0.47080318,115640.0,115630.0,1.84676971]
[1757641698582,0.47080318,115640.0,115630.0,1.69147561]
[1757641699177,0.47080318,115640.0,115630.0,1.58275318]
[1757641701691,0.22080318,115640.0,115630.0,0.606]
[1757641701894,0.65587636,115640.0,115630.0,0.62107318]
[1757641702589,0.65587636,115640.0,115630.0,0.77636728]
[1757641702992,0.47080318,115640.0,115630.0,0.77636728]
[1757641703492,0.65587636,115640.0,115630.0,0.70008589]
[1757641703993,0.65587636,115640.0,115630.0,0.5912941]
[1757641704289,0.65587636,115640.0,115630.0,0.436]
[1757641704991,0.65587636,115640.0,115630.0,0.5912941]
[1757641705588,0.65587636,115640.0,115630.0,0.77636728]
[1757641706293,0.65587636,115640.0,115630.0,0.5912941]
[1757641706499,0.65587636,115640.0,115630.0,0.77636728]
[1757641706795,0.65587636,115640.0,115630.0,0.5912941]
[1757641706998,0.65587636,115640.0,115630.0,0.77636728]
[1757641708195,0.65587636,115640.0,115630.0,0.5912941]
[1757641708396,0.65587636,115640.0,115630.0,0.77636728]
[1757641708993,0.65587636,115640.0,115630.0,0.5912941]
[1757641709192,0.65587636,115640.0,115630.0,0.436]
[1757641709897,0.65587636,115640.0,115630.0,0.54480694]
[1757641710497,0.65587636,115640.0,115630.0,0.72988012]
[1757641710699,0.84094954,115640.0,115630.0,0.006]
[1757641711094,0.65587636,115640.0,115630.0,0.006]
[1757641712298,0.28573,115640.0,115630.0,0.006]
[1757641712489,0.65587636,115640.0,115630.0,0.006]
[1757641712892,1.44755636,115640.0,115630.0,0.006]
[1757641716807,0.65587636,115640.0,115630.0,0.006]
[1757641717007,1.44755636,115640.0,115630.0,0.006]
[1757641717606,1.07741,115640.0,115630.0,0.006]
[1757641717906,1.44755636,115640.0,115630.0,0.006]
[1757641719303,1.19755636,115640.0,115630.0,0.006]
[1757641722010,1.38262954,115640.0,115630.0,0.006]
[1757641722211,0.82741,115640.0,115630.0,0.006]
[1757641722403,1.19755636,115640.0,115630.0,0.006]
[1757641727507,0.40587636,115640.0,115630.0,0.006]
[1757641727708,1.19751636,115640.0,115630.0,0.006]
[1757641728513,0.40587636,115640.0,115630.0,0.006]
[1757641728713,1.19751636,115640.0,115630.0,0.006]
[1757641729915,0.82737,115640.0,115630.0,0.006]
[1757641730112,1.19751636,115640.0,115630.0,0.006]
[1757641731215,0.40587636,115640.0,115630.0,0.006]
[1757641731418,1.19751636,115640.0,115630.0,0.006]
[1757641732319,0.40587636,115640.0,115630.0,0.006]
[1757641732521,1.19747636,115640.0,115630.0,0.006]
[1757641740324,1.07422478,115640.0,115630.0,0.006]
[1757641740927,1.07422478,115640.0,115630.0,0.11480694]
[1757641742435,0.82733,115640.0,115630.0,0.11480694]
[1757641742730,1.07422478,115640.0,115630.0,0.11480694]
[1757641742930,1.07422478,115640.0,115630.0,0.006]
[1757641745122,1.07422478,115640.0,115630.0,0.11480694]
[1757641745322,1.44767217,115640.0,115630.0,0.00980694]
[1757641745521,1.19767217,115640.0,115610.0,0.4194941]
[1757641745732,0.28209478,115620.0,115610.0,0.1552941]
[1757641745926,1.07361478,115620.0,115610.0,0.1552941]
[1757641746126,0.0352,115610.0,115600.0,0.03035751]
[1757641746335,0.15864739,115610.0,115600.0,0.17035751]
[1757641746931,0.15864739,115610.0,115600.0,0.32565161]
[1757641747639,0.15864739,115610.0,115600.0,0.17035751]
[1757641748131,0.0352,115610.0,115600.0,0.17035751]
[1757641748328,0.0216,115610.0,115600.0,0.807967]
[1757641748529,0.0226,115610.0,115600.0,0.9672611]
[1757641748735,0.0226,115610.0,115600.0,1.09070849]
[1757641748931,0.001,115610.0,115600.0,1.09070849]
[1757641749128,0.002,115610.0,115600.0,1.09370849]
[1757641749329,0.002,115610.0,115600.0,0.93841439]
[1757641749530,0.0236,115610.0,115590.0,0.22476016]
[1757641749733,0.0236,115610.0,115560.0,0.12344739]
[1757641749734,0.72732,115600.0,115560.0,0.01297]
[1757641749938,0.24689478,115570.0,115560.0,0.01297]
[1757641750138,1.16182217,115570.0,115560.0,0.01297]
[1757641750435,1.04148,115570.0,115560.0,0.01297]
[1757641750624,1.41511763,115570.0,115560.0,0.01297]
[1757641750827,1.03837478,115570.0,115560.0,0.01297]
[1757641751024,0.12344739,115570.0,115560.0,0.03478]
[1757641751435,0.06943335,115570.0,115560.0,0.26578]
[1757641751630,0.19288074,115570.0,115560.0,0.28578]
[1757641751930,0.19188074,115570.0,115560.0,0.03478]
[1757641752136,0.19188074,115570.0,115560.0,0.25478]
[1757641752333,0.19488074,115570.0,115560.0,0.25578]
[1757641753636,0.19588074,115570.0,115560.0,0.25678]
[1757641756845,0.07243335,115570.0,115560.0,0.25678]
[1757641757041,0.19588074,115570.0,115560.0,0.25678]
[1757641757931,0.31932813,115570.0,115560.0,0.25678]
[1757641758433,0.19588074,115570.0,115560.0,0.25678]
[1757641760246,0.07243335,115570.0,115560.0,0.25678]
[1757641760445,0.19588074,115570.0,115560.0,0.25678]
[1757641760940,0.07243335,115570.0,115560.0,0.84022739]
[1757641761342,0.19588074,115570.0,115560.0,0.71678]
[1757641762134,0.19588074,115570.0,115560.0,0.46678]
[1757641762839,0.31932813,115570.0,115560.0,0.46678]
[1757641763038,0.31932813,115570.0,115560.0,0.24678]
[1757641763235,0.19588074,115570.0,115560.0,0.24678]
[1757641763439,0.31932813,115570.0,115560.0,0.24678]
[1757641764848,0.19588074,115570.0,115560.0,0.24678]
[1757641765351,0.31932813,115570.0,115560.0,0.24678]
[1757641767141,0.31932813,115570.0,115560.0,0.23678]
[1757641767450,0.31932813,115570.0,115560.0,0.03678]
[1757641768050,0.31932813,115570.0,115560.0,0.24678]
[1757641768249,0.19588074,115570.0,115560.0,0.24678]
[1757641768655,0.31932813,115570.0,115560.0,0.24678]
[1757641769145,0.07243335,115570.0,115560.0,0.24678]
[1757641769448,1.48453552,115570.0,115560.0,0.01374]
[1757641769851,1.36108813,115570.0,115560.0,0.01374]
[1757641770247,0.56932813,115570.0,115560.0,0.03504]
[1757641770558,0.19588074,115570.0,115560.0,0.03504]
[1757641771059,0.19588074,115570.0,115560.0,0.25504]
[1757641772948,0.31932813,115570.0,115560.0,0.25504]
[1757641773355,0.19588074,115570.0,115560.0,0.25504]
[1757641774652,0.07243335,115570.0,115560.0,0.25504]
[1757641774851,0.19588074,115570.0,115560.0,0.25504]
[1757641776851,0.19588074,115570.0,115560.0,0.03504]
[1757641777055,0.19588074,115570.0,115560.0,0.24504]
[1757641778462,0.19588074,115570.0,115560.0,0.36848739]
[1757641778754,0.19588074,115570.0,115560.0,0.77848739]
[1757641778948,0.19588074,115570.0,115560.0,0.65504]
[1757641779151,0.19588074,115570.0,115560.0,0.81018527]
[1757641780060,0.19588074,115570.0,115560.0,0.41018527]
[1757641780449,0.19588074,115570.0,115560.0,0.62018527]
[1757641781152,0.004,115570.0,115560.0,0.74363266]
[1757641781759,0.12344739,115640.0,115610.0,0.01374]
[1757641781954,0.12344739,115640.0,115610.0,0.60504]
[1757641781955,0.02019877,115620.0,115610.0,0.60504]
[1757641782257,0.14364616,115620.0,115610.0,0.03504]
[1757641782455,0.19266087,115620.0,115610.0,0.03504]
[1757641782654,0.02019877,115620.0,115610.0,0.53504]
[1757641782959,0.02019877,115620.0,115610.0,0.03504]
[1757641782960,0.19266087,115620.0,115610.0,0.03504]
[1757641783659,0.19266087,115620.0,115610.0,0.03704]
[1757641783861,0.19966087,115620.0,115610.0,0.03704]
[1757641784049,0.19966087,115620.0,115610.0,0.03604]
[1757641784250,0.20866087,115620.0,115610.0,0.03704]
[1757641784861,0.03619877,115620.0,115610.0,0.03704]
[1757641785064,0.20866087,115620.0,115610.0,0.03704]
[1757641785362,0.20666087,115620.0,115610.0,0.03704]
[1757641785755,0.03419877,115620.0,115610.0,0.65704]
[1757641786363,0.20666087,115620.0,115610.0,0.03704]
[1757641787364,0.49666087,115620.0,115610.0,0.03704]
[1757641787666,0.49666087,115620.0,115610.0,0.54704]
[1757641788262,0.32419877,115620.0,115610.0,0.54704]
[1757641789667,0.32419877,115620.0,115610.0,0.78704]
[1757641791061,0.304,115620.0,115610.0,0.78704]
[1757641791772,1.68236996,115670.0,115650.0,0.01282]
[1757641791958,1.96236996,115670.0,115660.0,0.03462]
[1757641792159,2.92631206,115670.0,115660.0,0.03462]
[1757641792356,2.13483206,115670.0,115660.0,0.03462]
[1757641792660,3.17627206,115670.0,115660.0,0.03462]
[1757641792858,3.18627206,115670.0,115660.0,0.03462]
[1757641793055,2.39483206,115670.0,115660.0,0.03462]
[1757641793259,3.19481271,115670.0,115660.0,0.03462]
[1757641793768,3.20981271,115670.0,115660.0,0.03662]
[1757641794065,3.27236664,115670.0,115660.0,0.002]
[1757641794264,3.27228664,115670.0,115660.0,0.002]
[1757641794666,2.48092664,115670.0,115660.0,0.002]
[1757641794968,3.27228664,115670.0,115660.0,0.002]
[1757641795170,3.26228664,115670.0,115660.0,0.001]
[1757641795368,3.26628664,115670.0,115660.0,0.002]
[1757641796465,3.26628664,115670.0,115640.0,0.01282]
[1757641796667,0.1724621,115650.0,115640.0,0.01282]
[1757641796872,1.2537821,115650.0,115640.0,0.01282]
[1757641797371,1.2537421,115650.0,115640.0,0.01282]
[1757641797772,1.2537421,115650.0,115640.0,0.01382]
[1757641799069,1.2547421,115650.0,115640.0,0.01382]
[1757641799273,1.2577421,115650.0,115640.0,0.01382]
[1757641799664,1.2577421,115650.0,115640.0,0.03562]
[1757641799977,1.2577021,115650.0,115640.0,0.03562]
[1757641800966,0.4664621,115650.0,115640.0,0.03562]
[1757641801170,1.2576621,115650.0,115640.0,0.03562]
[1757641801477,1.2576621,115650.0,115640.0,0.01382]
[1757641801675,1.2576621,115650.0,115640.0,0.001]
[1757641801874,0.7164621,115650.0,115640.0,0.001]
[1757641802072,1.5076621,115650.0,115640.0,0.01382]
[1757641802378,1.45547286,115650.0,115640.0,0.03562]
[1757641805880,0.294,115650.0,115640.0,0.03562]
[1757641806082,1.09241643,115650.0,115640.0,0.03562]
[1757641806279,0.47913643,115650.0,115640.0,0.03562]
[1757641806477,0.294,115650.0,115640.0,0.80589286]
[1757641806674,0.294,115650.0,115640.0,1.27589286]
[1757641807076,0.294,115650.0,115640.0,1.28465845]
[1757641808381,0.294,115650.0,115640.0,1.0878683]
[1757641810880,0.294,115650.0,115640.0,0.65562]
[1757641810881,1.25856271,115650.0,115640.0,0.65562]
[1757641811076,1.50856271,115650.0,115640.0,0.03562]
[1757641811275,0.71748271,115650.0,115640.0,0.03562]
[1757641811584,1.50856271,115650.0,115640.0,0.03562]
[1757641812286,0.71748271,115650.0,115640.0,0.03562]
[1757641812582,1.50856271,115650.0,115640.0,0.03562]
[1757641812784,1.21856271,115650.0,115640.0,0.03562]
[1757641813184,1.04508,115650.0,115640.0,0.03562]
[1757641813484,0.79504,115650.0,115640.0,0.03562]
[1757641813682,0.79504,115650.0,115640.0,0.19562]
[1757641813883,0.79504,115650.0,115640.0,0.03562]
[1757641814279,0.79504,115650.0,115640.0,0.51562]
[1757641814476,0.79504,115650.0,115640.0,0.03562]
[1757641814679,0.79504,115650.0,115640.0,0.62562]
[1757641815077,0.79504,115650.0,115640.0,0.19562]
[1757641815287,0.79504,115650.0,115640.0,0.59562]
[1757641815690,0.96852271,115650.0,115640.0,0.03562]
[1757641816185,0.17748271,115650.0,115640.0,0.03562]
[1757641816490,0.96852271,115650.0,115640.0,0.03562]
[1757641819892,0.004,115650.0,115640.0,0.20910271]
[1757641820084,0.34068,115650.0,115640.0,0.36910271]
[1757641820792,0.34068,115650.0,115640.0,0.19562]
[1757641822190,0.004,115650.0,115640.0,0.19562]
[1757641822396,0.34064,115650.0,115640.0,0.64562]
[1757641823093,0.34064,115650.0,115640.0,0.22562]
[1757641823299,0.34064,115650.0,115640.0,0.56562]
[1757641824091,0.004,115650.0,115640.0,0.56562]
[1757641824293,0.004,115650.0,115640.0,0.63562]
[1757641824493,0.004,115650.0,115640.0,0.19562]
[1757641824694,0.004,115650.0,115640.0,0.21562]
[1757641825298,0.004,115650.0,115640.0,0.20562]
[1757641825691,0.17748271,115650.0,115640.0,0.20562]
[1757641826601,0.17748271,115650.0,115640.0,0.03562]
[1757641827199,0.96840271,115650.0,115640.0,0.03562]
[1757641830396,0.98002367,115650.0,115640.0,0.38072367]
[1757641830798,0.98002367,115650.0,115640.0,0.37072367]
[1757641833303,0.79492,115650.0,115640.0,0.37072367]
[1757641833504,0.18910367,115650.0,115640.0,0.37072367]
[1757641833806,0.71426367,115650.0,115640.0,0.37072367]
[1757641834502,0.18910367,115650.0,115640.0,0.37072367]
[1757641834708,0.97998367,115650.0,115640.0,0.37072367]
[1757641835004,0.18910367,115650.0,115640.0,0.37072367]
[1757641835306,0.52504,115650.0,115640.0,0.37072367]
[1757641835507,0.71014367,115650.0,115640.0,0.37072367]
[1757641835699,0.52504,115650.0,115640.0,0.37072367]
[1757641835905,0.71014367,115650.0,115640.0,0.37072367]
[1757641836106,0.18910367,115650.0,115640.0,0.37072367]
[1757641836298,0.97998367,115650.0,115640.0,0.37072367]
[1757641836498,0.97998367,115650.0,115640.0,0.22072367]
[1757641836499,0.18910367,115650.0,115640.0,0.22072367]
[1757641836800,0.67734367,115650.0,115640.0,0.82072367]
[1757641837000,0.67734367,115650.0,115640.0,0.39072367]
[1757641837401,0.004,115650.0,115640.0,0.92582734]
[1757641837705,0.004,115650.0,115640.0,1.26227054]
[1757641839311,0.004,115650.0,115640.0,1.01227054]
[1757641840609,0.004,115650.0,115640.0,0.92582734]
[1757641840809,0.18910367,115650.0,115640.0,0.74072367]
[1757641841009,0.18910367,115650.0,115640.0,0.55562]
[1757641841209,0.70610367,115650.0,115640.0,0.55562]
[1757641841403,0.70610367,115650.0,115640.0,0.74072367]
[1757641842004,0.70610367,115650.0,115640.0,0.03562]
[1757641842200,0.70610367,115650.0,115640.0,0.22072367]
[1757641842606,0.70610367,115650.0,115640.0,0.84072367]
[1757641842809,0.70610367,115650.0,115640.0,0.65562]
[1757641843007,0.97990367,115650.0,115640.0,0.63072367]
[1757641843613,0.18910367,115650.0,115640.0,0.63072367]
[1757641843805,0.97986367,115650.0,115640.0,0.63072367]
[1757641846105,0.18910367,115650.0,115640.0,0.63072367]
[1757641846305,0.74244,115650.0,115640.0,0.63072367]
[1757641846607,0.92754367,115650.0,115640.0,0.63072367]
[1757641846804,0.97986367,115650.0,115640.0,0.63072367]
[1757641847412,0.18910367,115650.0,115640.0,0.63072367]
[1757641847602,0.97986367,115650.0,115640.0,0.63072367]
[1757641847912,0.97986367,115650.0,115640.0,0.44562]
[1757641848114,0.98162367,115650.0,115640.0,0.81072367]
[1757641848407,0.98162367,115650.0,115640.0,0.03562]
[1757641849406,0.79652,115650.0,115640.0,0.03562]
[1757641849608,0.98162367,115650.0,115640.0,0.03562]
[1757641856320,0.98142367,115650.0,115640.0,0.03562]
[1757641856616,0.98122367,115650.0,115640.0,0.03562]
[1757641857115,0.18910367,115650.0,115640.0,0.03562]
[1757641857415,0.98118367,115650.0,115640.0,0.03562]
[1757641857715,0.18910367,115650.0,115640.0,0.03562]
[1757641857911,0.93482367,115650.0,115640.0,0.03562]
[1757641858513,0.18910367,115650.0,115640.0,0.03562]
[1757641858713,0.98106367,115650.0,115640.0,0.03562]
[1757641859709,0.79596,115650.0,115640.0,0.03562]
[1757641859910,0.98106367,115650.0,115640.0,0.03562]
[1757641860302,1.16616734,115650.0,115640.0,0.03562]
[1757641860508,0.98086367,115650.0,115640.0,0.03562]
[1757641861417,0.18910367,115650.0,115640.0,0.03562]
[1757641861916,0.93302367,115650.0,115640.0,0.03562]
[1757641862911,1.36812734,115650.0,115640.0,0.01382]
[1757641863119,1.55323101,115650.0,115640.0,0.001]
[1757641864408,1.2448604,115650.0,115640.0,0.001]
[1757641864813,1.3683306,115650.0,115640.0,0.001]
[1757641866616,0.6244106,115650.0,115640.0,0.001]
[1757641866814,1.2923004,115650.0,115640.0,0.001]
[1757641876118,1.0420604,115650.0,115640.0,0.01372]
[1757641876322,1.0420604,115650.0,115640.0,0.03607]
[1757641876617,0.9187102,115650.0,115640.0,0.03607]
[1757641876819,0.79524,115650.0,115640.0,0.03607]
[1757641877024,0.1274702,115650.0,115640.0,0.28607]
[1757641877224,0.1274702,115650.0,115640.0,0.5525132]
[1757641877420,0.5071502,115650.0,115640.0,0.5525132]
[1757641877624,0.5071502,115650.0,115640.0,0.5625132]
[1757641878325,0.5071502,115650.0,115640.0,0.5225132]
[1757641878526,0.5071502,115650.0,115640.0,0.3725132]
[1757641878922,0.5071502,115650.0,115640.0,0.5525132]
[1757641879226,0.1274702,115650.0,115640.0,0.5525132]
[1757641879721,0.7424302,115650.0,115640.0,0.5525132]
[1757641880027,0.1274702,115650.0,115640.0,0.5525132]
[1757641880326,0.9185102,115650.0,115640.0,0.5525132]
[1757641880527,0.9185102,115650.0,115640.0,0.3725132]
[1757641880925,0.1274702,115650.0,115640.0,0.5225132]
[1757641881321,0.4867502,115650.0,115640.0,0.5225132]
[1757641882126,0.4867502,115650.0,115640.0,0.5625132]
[1757641882329,0.36328,115650.0,115640.0,0.5625132]
[1757641882626,0.4867502,115650.0,115640.0,0.5625132]
[1757641883127,0.795,115650.0,115640.0,0.5425132]
[1757641883522,0.9184702,115650.0,115640.0,0.5425132]
[1757641884524,0.1274702,115650.0,115640.0,0.9525132]
[1757641884729,0.9184302,115650.0,115640.0,0.9525132]
[1757641886129,0.1274702,115650.0,115640.0,0.9525132]
[1757641886325,0.4861502,115650.0,115640.0,0.9525132]
[1757641886527,0.6096204,115650.0,115640.0,0.01372]
[1757641886722,0.6096204,115650.0,115640.0,0.03678]
[1757641888129,0.6096204,115650.0,115640.0,0.01372]
[1757641888324,0.6096204,115650.0,115640.0,0.03678]
[1757641892535,0.36268,115650.0,115640.0,0.03678]
[1757641892737,0.6096204,115650.0,115640.0,0.03678]
[1757641895535,0.2509404,115650.0,115640.0,0.03678]
[1757641895736,0.7091804,115650.0,115640.0,0.03678]
[1757641895935,1.0437804,115650.0,115640.0,0.03678]
[1757641897834,1.0437804,115650.0,115640.0,0.01372]
[1757641898237,1.0437804,115650.0,115640.0,0.03678]
[1757641898832,1.0437804,115650.0,115640.0,0.001]
[1757641898833,1.4172506,115650.0,115640.0,0.001]
[1757641899032,1.2937804,115650.0,115640.0,0.001]
[1757641899432,1.0437804,115650.0,115640.0,0.001]
[1757641901745,1.4172506,115650.0,115640.0,0.001]
[1757641902536,1.2937804,115650.0,115640.0,0.001]
[1757641905231,0.5009404,115650.0,115640.0,0.001]
[1757641905435,1.2933004,115650.0,115640.0,0.001]
[1757641908341,0.5009404,115650.0,115640.0,0.01459]
[1757641908544,1.2931404,115650.0,115640.0,0.01459]
[1757641909341,1.2931404,115650.0,115640.0,0.001]
[1757641911141,1.31322721,115650.0,115640.0,0.001]
[1757641920446,1.31322721,115650.0,115640.0,0.01434]
[1757641920951,1.31298721,115650.0,115640.0,0.03763]
[1757641921343,1.31298721,115650.0,115640.0,0.01434]
[1757641922244,0.52102721,115650.0,115640.0,0.01434]
[1757641922449,0.94067701,115650.0,115640.0,0.28763]
[1757641922748,0.94067701,115650.0,115640.0,0.43763]
[1757641923350,0.94067701,115650.0,115640.0,0.28763]
[1757641923849,0.81720681,115650.0,115640.0,0.28763]
[1757641924051,0.94067701,115650.0,115640.0,0.43763]
[1757641924254,0.81720681,115650.0,115640.0,0.43763]
[1757641924549,0.94067701,115650.0,115640.0,0.28763]
[1757641926347,1.00232228,115650.0,115640.0,0.28763]
[1757641926753,1.18743775,115650.0,115640.0,0.28763]
[1757641930055,0.81720681,115650.0,115640.0,0.28763]
[1757641930354,1.18743775,115650.0,115640.0,0.28763]
[1757641931956,1.00224228,115650.0,115640.0,1.09918857]
[1757641932449,0.20920228,115650.0,115640.0,0.55918857]
[1757641932655,0.93376228,115650.0,115640.0,0.89918857]
[1757641933248,0.93376228,115650.0,115640.0,0.7140731]
[1757641933452,0.93376228,115650.0,115640.0,0.89918857]
[1757641934650,0.20920228,115650.0,115640.0,0.89918857]
[1757641934855,0.93336228,115650.0,115640.0,0.89918857]
[1757641935051,0.93336228,115650.0,115640.0,1.16338857]
[1757641935254,0.93336228,115650.0,115640.0,0.9782731]
[1757641935457,0.93336228,115650.0,115640.0,0.89183]
[1757641935855,0.93336228,115650.0,115640.0,1.07694547]
[1757641936653,1.00220228,115650.0,115640.0,1.07694547]
[1757641937869,1.00220228,115650.0,115640.0,0.89183]
[1757641938055,1.00220228,115650.0,115640.0,1.07694547]
[1757641938558,1.00220228,115650.0,115640.0,0.55183]
[1757641939265,1.00192228,115650.0,115640.0,0.55183]
[1757641939466,1.18703775,115650.0,115640.0,0.55183]
[1757641939658,1.18703775,115650.0,115640.0,0.30183]
[1757641940954,1.18703775,115650.0,115640.0,0.03763]
[1757641943460,0.02408681,115650.0,115640.0,0.03763]
[1757641943661,1.18731775,115650.0,115640.0,0.03763]
[1757641944065,1.18703775,115650.0,115640.0,0.03763]
[1757641944458,1.18695775,115650.0,115640.0,0.03763]
[1757641944662,1.18695775,115650.0,115640.0,0.01434]
[1757641945159,1.18695775,115650.0,115640.0,0.03659]
[1757641945358,0.20920228,115650.0,115640.0,0.03659]
[1757641945558,1.00184228,115650.0,115640.0,0.03659]
[1757641947054,0.81660681,115650.0,115640.0,0.03659]
[1757641947261,0.20920228,115650.0,115640.0,0.20659]
[1757641947564,1.00152228,115650.0,115640.0,0.20659]
[1757641948263,0.20920228,115650.0,115640.0,0.20659]
[1757641948466,1.00152228,115650.0,115640.0,0.20659]
[1757641949163,0.20920228,115650.0,115640.0,0.20659]
[1757641949368,1.00140228,115650.0,115640.0,0.20659]
[1757641949766,1.00132228,115650.0,115640.0,0.19659]
[1757641950368,1.00132228,115650.0,115640.0,0.38170547]
[1757641950369,1.00128228,115650.0,115640.0,0.38170547]
[1757641950668,1.00120228,115650.0,115640.0,0.19659]
[1757641951170,1.00120228,115650.0,115640.0,0.03659]
[1757641951375,0.20920228,115650.0,115640.0,0.21659]
[1757641951574,1.00124228,115650.0,115640.0,0.21659]
[1757641951867,1.00116228,115650.0,115640.0,0.21659]
[1757641952069,1.00116228,115650.0,115640.0,0.40170547]
[1757641952376,0.02408681,115650.0,115640.0,0.55170547]
[1757641952670,0.20920228,115650.0,115640.0,0.55170547]
[1757641952871,0.02408681,115650.0,115640.0,1.33746404]
[1757641953064,0.20920228,115650.0,115640.0,1.15234857]
[1757641953272,0.39431775,115650.0,115640.0,0.30079]
[1757641956969,0.39431775,115650.0,115640.0,0.03659]
[1757641957567,1.18671775,115650.0,115640.0,0.03659]
[1757641959175,0.39431775,115650.0,115640.0,0.03659]
[1757641959476,1.18655775,115650.0,115640.0,0.03659]
[1757641960572,1.18655775,115650.0,115640.0,0.01434]
[1757641960779,1.43655775,115650.0,115640.0,0.01434]
[1757641964073,1.43655775,115650.0,115640.0,0.03659]
[1757641969883,1.62167322,115650.0,115640.0,0.001]
[1757641974485,1.62167322,115650.0,115610.0,0.03034822]
[1757641974486,1.62167322,115650.0,115610.0,0.01282]
[1757641974790,0.37023094,115620.0,115610.0,0.01282]
[1757641974988,1.34666641,115620.0,115610.0,0.03496]
[1757641975183,1.23007918,115620.0,115610.0,0.03496]
[1757641975388,1.41519465,115620.0,115610.0,0.03496]
[1757641975791,1.34666641,115620.0,115610.0,0.03496]
[1757641975987,1.34666641,115620.0,115610.0,0.03696]
[1757641976184,1.34766641,115620.0,115610.0,0.01482]
[1757641976796,1.34766641,115620.0,115610.0,0.002]
[1757641976797,1.36790175,115620.0,115610.0,0.002]
[1757641978092,1.36790175,115620.0,115610.0,0.003]
[1757641978591,1.36794175,115620.0,115610.0,0.01687]
[1757641978791,0.57658175,115620.0,115610.0,0.03901]
[1757641979288,1.36794175,115620.0,115610.0,0.03901]
[1757641979491,0.57658175,115620.0,115610.0,0.01687]
[1757641979688,1.36794175,115620.0,115610.0,0.003]
[1757641979889,1.43611729,115620.0,115610.0,0.003]
[1757641980090,1.68611729,115620.0,115610.0,0.003]
[1757641981584,1.68615729,115620.0,115610.0,0.003]
[1757641981890,1.68615729,115620.0,115590.0,0.01387]
[1757641982087,0.55534641,115600.0,115590.0,0.01387]
[1757641982283,1.34678641,115600.0,115590.0,0.01387]
[1757641982593,0.55534641,115600.0,115590.0,0.01387]
[1757641982893,1.16167094,115600.0,115590.0,0.03601]
[1757641983089,1.16167094,115600.0,115590.0,0.03701]
[1757641983293,1.34678641,115600.0,115590.0,0.03701]
[1757641983489,1.16167094,115600.0,115590.0,0.03701]
[1757641983691,1.16267094,115600.0,115590.0,0.04001]
[1757641983887,1.34778641,115600.0,115590.0,0.04001]
[1757641984198,1.16267094,115600.0,115590.0,0.04001]
[1757641984794,1.16267094,115600.0,115590.0,0.04201]
[1757641986394,1.03950898,115600.0,115590.0,0.04201]
[1757641986899,0.91905449,115600.0,115590.0,0.45901]
[1757641987092,0.91905449,115600.0,115590.0,0.46901]
[1757641987290,0.91905449,115600.0,115590.0,0.84901]
[1757641987485,1.04358898,115600.0,115590.0,0.44701]
[1757641987689,0.25206898,115600.0,115590.0,0.44701]
[1757641987886,0.59497449,115600.0,115590.0,0.44701]
[1757641988086,0.59497449,115600.0,115590.0,0.28701]
[1757641988401,0.59497449,115600.0,115590.0,0.45701]
[1757641988598,0.12853449,115600.0,115590.0,0.79701]
[1757641988797,0.92005449,115600.0,115590.0,0.79701]
[1757641989098,0.92005449,115600.0,115590.0,0.44701]
[1757641989591,0.92005449,115600.0,115590.0,0.28701]
[1757641989787,0.92005449,115600.0,115590.0,0.84701]
[1757641990394,0.92005449,115600.0,115590.0,0.45701]
[1757641990593,0.92005449,115600.0,115590.0,0.28701]
[1757641990793,0.92005449,115600.0,115590.0,0.85701]